bitfinex/quotes_BTCUSD_20251019
["timestamp","ask_amount","ask_price","bid_price","bid_amount"]
[1760870306902,0.06837837,107890.0,107880.0,0.12176484]
[1760870307055,0.06637837,107890.0,107880.0,0.12176484]
[1760870307481,0.06837837,107890.0,107880.0,0.09384]
[1760870307743,0.25375236,107890.0,107880.0,0.09384]
[1760870308849,0.25536754,107890.0,107880.0,0.09384]
[1760870310887,0.06999355,107890.0,107880.0,0.27923117]
[1760870311263,0.04212408,107890.0,107880.0,0.27923117]
[1760870311483,0.04212408,107890.0,107880.0,0.09384]
[1760870311877,0.04012408,107890.0,107880.0,0.09384]
[1760870312290,0.22549807,107890.0,107880.0,0.09384]
[1760870313769,0.04012408,107890.0,107880.0,0.27923117]
[1760870314422,0.04012408,107890.0,107880.0,0.09384]
[1760870315180,0.04012408,107890.0,107880.0,0.27923117]
[1760870315392,0.04012408,107890.0,107880.0,0.32569512]
[1760870316808,0.04012408,107890.0,107880.0,0.420106]
[1760870317200,0.00211803,107890.0,107880.0,0.420106]
[1760870318039,0.00050285,107890.0,107880.0,0.420106]
[1760870318443,0.00050285,107890.0,107880.0,0.760106]
[1760870319247,0.22389075,107890.0,107880.0,0.09441088]
[1760870319451,3.18540927,107870.0,107850.0,20.00145393]
[1760870319657,3.0,107870.0,107860.0,0.09384]
[1760870320041,0.02787219,107870.0,107860.0,0.38294114]
[1760870320472,0.18539186,107880.0,107860.0,0.38294114]
[1760870320676,0.21326294,107880.0,107860.0,0.38294114]
[1760870321004,0.21326294,107880.0,107860.0,0.19751769]
[1760870321210,0.21326294,107880.0,107860.0,0.38294269]
[1760870321841,0.21326294,107880.0,107860.0,0.28853627]
[1760870322224,0.21487812,107880.0,107860.0,0.28853627]
[1760870322462,0.18540836,107870.0,107850.0,20.00145393]
[1760870322660,0.18542555,107860.0,107850.0,20.00145393]
[1760870323107,0.18542555,107860.0,107850.0,20.09529393]
[1760870323647,0.18704107,107860.0,107850.0,20.09529393]
[1760870324206,0.31763423,107860.0,107850.0,20.00145393]
[1760870324405,3.65763423,107860.0,107850.0,20.00145393]
[1760870324813,3.78453398,107860.0,107850.0,20.00145393]
[1760870325111,3.81296787,107860.0,107850.0,20.00145393]
[1760870325293,3.82296786,107860.0,107850.0,20.00145393]
[1760870326597,3.78453398,107860.0,107850.0,20.00145393]
[1760870326707,3.79453397,107860.0,107850.0,20.00145393]
[1760870326913,3.82484802,107860.0,107850.0,20.00145393]
[1760870327822,3.81484803,107860.0,107850.0,20.00145393]
[1760870328017,3.82484802,107860.0,107850.0,20.00145393]
[1760870328635,3.81484803,107860.0,107850.0,20.00145393]
[1760870329481,3.82484802,107860.0,107850.0,20.00145393]
[1760870329708,3.85273296,107860.0,107850.0,20.00145393]
[1760870330145,3.78035917,107860.0,107850.0,20.00145393]
[1760870330554,3.68651917,107860.0,107850.0,20.00145393]
[1760870331860,3.70383425,107860.0,107850.0,20.00145393]
[1760870334037,3.68651917,107860.0,107850.0,20.00145393]
[1760870334222,3.70382164,107860.0,107850.0,20.00145393]
[1760870334809,3.70220612,107860.0,107850.0,20.00145393]
[1760870335894,3.70221576,107860.0,107850.0,20.00145393]
[1760870336993,3.66603348,107860.0,107850.0,20.00145393]
[1760870337605,3.70221576,107860.0,107850.0,20.00145393]
[1760870338006,3.67433082,107860.0,107850.0,20.00145393]
[1760870340523,3.67432455,107860.0,107850.0,20.00145393]
[1760870342187,3.488899,107860.0,107850.0,20.00145393]
[1760870342383,3.67432455,107860.0,107850.0,20.00145393]
[1760870342583,3.76816455,107860.0,107850.0,20.00145393]
[1760870344136,3.79781763,107860.0,107850.0,20.00145393]
[1760870344748,3.76816455,107860.0,107850.0,20.00145393]
[1760870344950,3.76978025,107860.0,107850.0,20.00145393]
[1760870345549,3.67594025,107860.0,107850.0,20.00145393]
[1760870350025,3.67598377,107860.0,107850.0,20.00145393]
[1760870351597,3.70568477,107860.0,107850.0,20.00145393]
[1760870351815,3.67598377,107860.0,107850.0,20.00145393]
[1760870352768,3.63980149,107860.0,107850.0,20.00145393]
[1760870356641,0.11437594,107860.0,107850.0,20.18689667]
[1760870356787,0.01996506,107860.0,107850.0,20.2056196]
[1760870356998,0.01834936,107860.0,107850.0,20.2056196]
[1760870357350,0.01734936,107860.0,107850.0,20.2056196]
[1760870358819,0.01734936,107860.0,107850.0,20.30003048]
[1760870359033,0.01423919,107860.0,107850.0,20.67791542]
[1760870359266,0.01223999,107860.0,107850.0,20.67791542]
[1760870359479,0.03851676,107890.0,107880.0,0.18539117]
[1760870359683,0.22389075,107890.0,107880.0,0.09384]
[1760870359845,0.2255059,107890.0,107880.0,0.09384]
[1760870361380,0.18749199,107890.0,107880.0,0.09384]
[1760870362029,0.18749199,107890.0,107880.0,0.1217646]
[1760870362680,0.002118,107890.0,107880.0,0.30715577]
[1760870362873,0.18749199,107890.0,107880.0,0.30715577]
[1760870363452,0.18749199,107890.0,107880.0,0.27923117]
[1760870364597,0.22536562,107890.0,107870.0,0.18540599]
[1760870364904,0.03999163,107890.0,107880.0,0.27919117]
[1760870366318,0.22536562,107890.0,107870.0,0.18540599]
[1760870366479,0.22536562,107890.0,107880.0,0.0938]
[1760870367267,0.22536562,107890.0,107880.0,0.27919117]
[1760870367666,0.03999163,107890.0,107880.0,0.27919117]
[1760870367916,0.03837648,107890.0,107880.0,0.27919117]
[1760870368122,0.22375047,107890.0,107880.0,0.0938]
[1760870369324,0.18539117,107880.0,107860.0,0.19466896]
[1760870369534,0.18539117,107880.0,107870.0,0.18540836]
[1760870369745,0.22375047,107890.0,107870.0,0.27920836]
[1760870369957,0.22375047,107890.0,107880.0,0.0938]
[1760870370167,0.18539117,107880.0,107860.0,0.00927127]
[1760870370384,0.18540836,107870.0,107850.0,20.18689667]
[1760870370532,0.18542555,107860.0,107850.0,20.00145393]
[1760870370698,0.61983643,107860.0,107850.0,20.00145393]
[1760870371112,0.63717465,107860.0,107850.0,20.00145393]
[1760870371957,3.63717465,107860.0,107850.0,20.00145393]
[1760870372157,3.63879029,107860.0,107850.0,20.00145393]
[1760870374962,3.73259029,107860.0,107850.0,20.00145393]
[1760870375165,3.76877257,107860.0,107850.0,20.00145393]
[1760870376280,3.58334702,107860.0,107850.0,20.00145393]
[1760870376412,3.76977257,107860.0,107850.0,20.00145393]
[1760870376824,3.76877257,107860.0,107850.0,20.00145393]
[1760870377389,3.76977257,107860.0,107850.0,20.00145393]
[1760870377930,3.76815693,107860.0,107850.0,20.00145393]
[1760870378344,3.79604153,107860.0,107850.0,20.00145393]
[1760870382809,3.77870331,107860.0,107850.0,20.00145393]
[1760870382967,3.75081871,107860.0,107850.0,20.00145393]
[1760870385203,3.28083643,107860.0,107850.0,20.00145393]
[1760870385647,3.62083643,107860.0,107850.0,20.00145393]
[1760870386000,3.28083643,107860.0,107850.0,20.28130309]
[1760870386214,0.18642555,107860.0,107850.0,20.09586035]
[1760870386796,0.18642555,107860.0,107850.0,20.00145393]
[1760870386984,0.18542555,107860.0,107850.0,20.00145393]
[1760870387176,3.0,107860.0,107850.0,20.18689667]
[1760870389311,0.19466072,107880.0,107870.0,0.18540836]
[1760870389544,0.2890716,107880.0,107870.0,0.13088172]
[1760870389748,0.2890716,107880.0,107870.0,0.0938]
[1760870390748,0.26906813,107880.0,107870.0,0.0938]
[1760870390917,0.18541801,107870.0,107850.0,20.1961688]
[1760870391218,0.18541801,107870.0,107860.0,0.09472712]
[1760870391586,0.18703334,107870.0,107860.0,0.09472712]
[1760870391780,0.18703334,107870.0,107860.0,0.00092712]
[1760870392008,0.18703334,107870.0,107860.0,0.09472712]
[1760870395832,0.18542555,107860.0,107850.0,20.00145393]
[1760870396034,0.18542555,107860.0,107850.0,20.09525393]
[1760870396233,0.18542555,107860.0,107850.0,20.00145393]
[1760870396604,0.18542555,107860.0,107850.0,20.09525393]
[1760870397636,0.18542555,107860.0,107850.0,20.18966035]
[1760870397803,0.18542555,107860.0,107850.0,20.37510309]
[1760870398457,0.18542555,107860.0,107850.0,20.09525393]
[1760870398662,0.18542555,107860.0,107850.0,20.28069667]
[1760870401347,0.18541801,107870.0,107850.0,20.28069667]
[1760870401587,0.53469236,107880.0,107860.0,0.18542555]
[1760870401799,0.18540836,107870.0,107860.0,0.18542555]
[1760870402137,0.18540836,107870.0,107850.0,20.28069667]
[1760870403207,0.18540836,107870.0,107860.0,0.00018886]
[1760870403419,0.18702373,107870.0,107860.0,0.00018886]
[1760870403621,0.18540836,107870.0,107860.0,0.00018886]
[1760870404977,0.18540836,107870.0,107850.0,20.28069667]
[1760870405192,0.18540836,107870.0,107860.0,0.0002736]
[1760870406262,0.18540836,107870.0,107860.0,0.0940336]
[1760870406480,0.18540836,107870.0,107860.0,0.09376]
[1760870406727,0.18702374,107870.0,107860.0,0.09376]
[1760870407837,0.18540836,107870.0,107860.0,0.09376]
[1760870409410,0.18540836,107870.0,107860.0,0.18816642]
[1760870409830,0.18540836,107870.0,107860.0,0.37359197]
[1760870410174,0.18540836,107870.0,107860.0,0.18816642]
[1760870410373,0.18540836,107870.0,107860.0,0.09376]
[1760870411805,0.18702375,107870.0,107860.0,0.09376]
[1760870415095,0.18542555,107860.0,107850.0,20.18689449]
[1760870415540,0.18542555,107860.0,107850.0,20.28065449]
[1760870415777,0.18702375,107870.0,107850.0,20.28065449]
[1760870415973,0.18542555,107860.0,107850.0,20.28065449]
[1760870417252,0.18542555,107860.0,107850.0,20.09521393]
[1760870417420,0.18542555,107860.0,107850.0,20.28065667]
[1760870417618,0.18702375,107870.0,107850.0,20.28065667]
[1760870417932,0.18542555,107860.0,107850.0,20.28065667]
[1760870420583,0.18542555,107860.0,107850.0,20.00145393]
[1760870420806,0.27983643,107860.0,107850.0,20.00145393]
[1760870421007,0.61983643,107860.0,107850.0,20.00145393]
[1760870421418,0.27983643,107860.0,107850.0,20.00145393]
[1760870424720,0.281452,107860.0,107850.0,20.00145393]
[1760870426245,0.281452,107860.0,107850.0,20.18689667]
[1760870426582,0.00161557,107860.0,107850.0,20.18689667]
[1760870429803,0.00161557,107860.0,107850.0,20.28130755]
[1760870430020,0.00161557,107860.0,107850.0,20.37571397]
[1760870433107,0.18704112,107860.0,107850.0,20.00145393]
[1760870433555,0.18704112,107860.0,107850.0,20.28065667]
[1760870433771,0.18704112,107860.0,107850.0,20.09521393]
[1760870435146,0.18704112,107860.0,107850.0,20.28065667]
[1760870435349,0.00161557,107860.0,107850.0,20.28065667]
[1760870435544,0.00161557,107860.0,107850.0,20.37506309]
[1760870439380,0.18704112,107860.0,107850.0,20.37506309]
[1760870439584,0.00161557,107860.0,107850.0,20.37506309]
[1760870443129,0.18704112,107860.0,107850.0,20.09521393]
[1760870443581,0.18704112,107860.0,107850.0,20.28065667]
[1760870444902,0.18704112,107860.0,107850.0,20.00145393]
[1760870445141,0.27983643,107860.0,107850.0,20.00145393]
[1760870445351,0.61983643,107860.0,107850.0,20.00145393]
[1760870449455,0.62145199,107860.0,107850.0,20.00145393]
[1760870450003,0.18704111,107860.0,107850.0,20.28130309]
[1760870450321,0.00161556,107860.0,107850.0,20.37506309]
[1760870450519,0.18704111,107860.0,107850.0,20.37506309]
[1760870450723,0.18542555,107860.0,107850.0,20.37506309]
[1760870450931,0.18542555,107860.0,107850.0,20.18962035]
[1760870451704,0.18542555,107860.0,107850.0,20.09521393]
[1760870451901,0.17838944,107870.0,107850.0,20.28065667]
[1760870452103,0.27280032,107870.0,107850.0,20.28065667]
[1760870452702,0.18542555,107860.0,107850.0,20.09521393]
[1760870453954,0.187041,107860.0,107850.0,20.09521393]
[1760870454723,0.187041,107860.0,107850.0,20.00145393]
[1760870454934,0.187041,107860.0,107850.0,20.09521393]
[1760870455598,0.187041,107860.0,107850.0,20.28065667]
[1760870455801,0.00161545,107860.0,107850.0,20.37506309]
[1760870456552,3.0,107870.0,107860.0,0.18542323]
[1760870456769,0.18539117,107880.0,107870.0,0.18540037]
[1760870456988,0.18539117,107880.0,107870.0,0.09372]
[1760870457203,0.96561916,107890.0,107870.0,0.27912836]
[1760870457389,0.18539117,107880.0,107870.0,0.27912836]
[1760870457592,1.06003004,107890.0,107870.0,0.27912836]
[1760870458059,0.18539117,107880.0,107870.0,0.27912836]
[1760870458174,0.18539117,107880.0,107870.0,0.09372]
[1760870459651,0.1854238,107870.0,107850.0,20.18688918]
[1760870459856,0.1854238,107870.0,107860.0,0.09372]
[1760870460938,0.18542555,107860.0,107850.0,20.00145393]
[1760870461512,0.18542555,107860.0,107850.0,20.09517393]
[1760870461717,0.52542555,107860.0,107850.0,20.00145393]
[1760870461999,0.52704102,107860.0,107850.0,20.00145393]
[1760870462210,0.6214519,107860.0,107850.0,20.00145393]
[1760870463674,0.52704102,107860.0,107850.0,20.09586035]
[1760870463877,0.18704102,107860.0,107850.0,20.09586035]
[1760870464118,0.18704102,107860.0,107850.0,20.28130309]
[1760870464492,0.18542555,107860.0,107850.0,20.00145393]
[1760870467622,0.18704101,107860.0,107850.0,20.00145393]
[1760870468009,0.18542555,107860.0,107850.0,20.00145393]
[1760870469067,3.0,107860.0,107850.0,20.18689667]
[1760870469269,0.18541269,107870.0,107860.0,0.18542555]
[1760870469586,0.19466072,107880.0,107860.0,0.27914555]
[1760870469750,0.19466072,107880.0,107870.0,0.18540836]
[1760870469751,3.18539117,107880.0,107870.0,0.18540836]
[1760870469927,0.18539117,107880.0,107860.0,0.37355197]
[1760870470120,0.18539117,107880.0,107870.0,0.18606419]
[1760870470339,0.18539117,107880.0,107870.0,0.18540836]
[1760870470542,0.18539117,107880.0,107860.0,0.37355197]
[1760870470778,0.18540836,107870.0,107860.0,0.37355197]
[1760870471111,0.18540836,107870.0,107860.0,0.27914555]
[1760870471705,0.18702364,107870.0,107860.0,0.09372]
[1760870472106,0.18702364,107870.0,107860.0,0.27980917]
[1760870472299,0.18702364,107870.0,107860.0,0.27914555]
[1760870472505,0.00161528,107870.0,107860.0,0.27914555]
[1760870472669,0.18702364,107870.0,107860.0,0.27914555]
[1760870473069,0.18702364,107870.0,107860.0,0.37355197]
[1760870473470,0.00161528,107870.0,107860.0,0.37355197]
[1760870474076,0.18702364,107870.0,107860.0,0.27914555]
[1760870474470,0.18702364,107870.0,107860.0,0.09372]
[1760870474668,0.18146234,107880.0,107860.0,0.09372]
[1760870474932,0.18540836,107870.0,107860.0,0.09372]
[1760870476449,0.18146234,107880.0,107860.0,0.27914555]
[1760870476655,0.18146234,107880.0,107860.0,0.37355197]
[1760870477177,0.18540836,107870.0,107860.0,0.37327021]
[1760870477389,0.18540836,107870.0,107860.0,0.27886379]
[1760870477830,0.18540836,107870.0,107860.0,0.09344046]
[1760870478482,0.18540836,107870.0,107860.0,0.09507464]
[1760870479157,0.18540836,107870.0,107860.0,0.09344046]
[1760870479596,0.18540836,107870.0,107860.0,0.09372]
[1760870480898,0.18542555,107860.0,107850.0,20.00145393]
[1760870481110,0.18542555,107860.0,107850.0,20.09517393]
[1760870481592,0.18704095,107860.0,107850.0,20.09517393]
[1760870484627,0.0016154,107860.0,107850.0,20.28061667]
[1760870484831,0.0016154,107860.0,107850.0,20.30238932]
[1760870485686,0.1854101,107870.0,107860.0,0.18542555]
[1760870485909,0.1854101,107870.0,107850.0,20.28061667]
[1760870486114,0.1854101,107870.0,107860.0,0.0016963]
[1760870486332,0.1854101,107870.0,107860.0,0.18712185]
[1760870486530,0.1854101,107870.0,107860.0,0.18542555]
[1760870488106,0.19073189,107880.0,107860.0,0.18542555]
[1760870488346,0.19073189,107880.0,107870.0,0.09372]
[1760870488763,0.19073189,107880.0,107870.0,0.27912836]
[1760870489230,0.19073189,107880.0,107870.0,0.09372]
[1760870491258,0.19073189,107880.0,107870.0,0.09566693]
[1760870491679,0.1923472,107880.0,107870.0,0.09372]
[1760870494032,0.18540836,107870.0,107860.0,0.00167572]
[1760870494244,0.18540836,107870.0,107860.0,0.09539572]
[1760870495345,0.18542555,107860.0,107850.0,20.00145393]
[1760870495547,0.18542555,107860.0,107850.0,20.09513393]
[1760870495748,0.18542555,107860.0,107850.0,20.00145393]
[1760870496012,0.18704095,107860.0,107850.0,20.09513393]
[1760870496308,0.18542555,107860.0,107850.0,20.09513393]
[1760870498492,0.27983643,107860.0,107850.0,20.00145393]
[1760870498693,0.61983643,107860.0,107850.0,20.00145393]
[1760870499181,0.64933173,107860.0,107850.0,20.00145393]
[1760870502955,3.64933173,107860.0,107850.0,20.00145393]
[1760870503770,3.44684341,107860.0,107850.0,20.00145393]
[1760870504264,3.63226896,107860.0,107850.0,20.00145393]
[1760870507540,0.60438921,107860.0,107850.0,20.00145393]
[1760870509578,0.60438921,107860.0,107850.0,20.18689667]
[1760870509779,0.00161555,107860.0,107850.0,20.18689667]
[1760870509959,0.1870411,107860.0,107850.0,20.00145393]
[1760870510318,0.1870411,107860.0,107850.0,20.18689667]
[1760870511063,0.1870411,107860.0,107850.0,20.00145393]
[1760870511512,0.1870411,107860.0,107850.0,20.09517393]
[1760870512490,0.1870411,107860.0,107850.0,20.09513393]
[1760870516817,0.1870411,107860.0,107850.0,20.00145393]
[1760870516964,0.1870411,107860.0,107850.0,20.09513393]
[1760870518781,0.1870411,107860.0,107850.0,20.00145393]
[1760870520592,0.02787877,107870.0,107850.0,20.00145393]
[1760870520834,0.02787877,107870.0,107860.0,0.09368]
[1760870520835,0.18540953,107870.0,107860.0,0.09368]
[1760870521211,0.2186076,107880.0,107860.0,0.27910555]
[1760870521415,3.0,107870.0,107860.0,0.27910555]
[1760870521621,0.18540836,107870.0,107860.0,0.09368]
[1760870522188,3.18540836,107870.0,107860.0,0.27910555]
[1760870522394,0.18540836,107870.0,107860.0,0.27910555]
[1760870523487,3.0,107870.0,107860.0,0.27910555]
[1760870523933,3.00161535,107870.0,107860.0,0.27910555]
[1760870524174,0.00161535,107870.0,107860.0,0.27910555]
[1760870535481,0.23302446,107890.0,107870.0,0.18539901]
[1760870535699,0.23302446,107890.0,107880.0,0.09364]
[1760870537319,0.23302446,107890.0,107880.0,0.09460809]
[1760870539444,0.23463962,107890.0,107880.0,0.09460809]
[1760870541023,0.23463962,107890.0,107880.0,0.09364]
[1760870542187,0.23302446,107890.0,107880.0,0.09364]
[1760870542970,0.04839038,107890.0,107870.0,0.18540826]
[1760870543375,0.04839038,107890.0,107880.0,0.09364]
[1760870543578,0.07589247,107890.0,107880.0,0.09364]
[1760870545649,0.22214477,107890.0,107880.0,0.27903117]
[1760870546276,0.22214477,107890.0,107880.0,0.09364]
[1760870548660,0.22375992,107890.0,107880.0,0.09364]
[1760870552503,0.06941639,107890.0,107880.0,0.09364]
[1760870552709,0.06941639,107890.0,107880.0,0.27903117]
[1760870552971,0.06941639,107890.0,107880.0,0.09364]
[1760870553144,0.10577168,107890.0,107880.0,0.09364]
[1760870556748,0.10577168,107890.0,107880.0,0.27903117]
[1760870557129,0.03797044,107890.0,107880.0,0.27903117]
[1760870557329,0.22334443,107890.0,107880.0,0.27903117]
[1760870557941,0.02870175,107890.0,107880.0,0.27903117]
[1760870559328,0.02870175,107890.0,107880.0,0.32547511]
[1760870560377,0.00161515,107890.0,107880.0,0.32547511]
[1760870561735,0.00161515,107890.0,107880.0,0.41988599]
[1760870561931,0.1946079,107910.0,107890.0,0.18535937]
[1760870562173,0.1946079,107910.0,107900.0,0.0936]
[1760870563282,0.1946079,107910.0,107900.0,0.27895681]
[1760870563486,0.1946079,107910.0,107900.0,0.29844186]
[1760870563687,3.0,107910.0,107900.0,0.29844186]
[1760870564462,3.0,107910.0,107900.0,0.27895681]
[1760870564463,0.027058,107910.0,107900.0,0.27895681]
[1760870564752,0.18538149,107920.0,107910.0,0.18533963]
[1760870564918,0.27979237,107920.0,107900.0,0.27895681]
[1760870565114,0.18533963,107910.0,107900.0,0.27895681]
[1760870566124,0.18533963,107910.0,107900.0,0.0936]
[1760870566372,0.21332086,107910.0,107900.0,0.0936]
[1760870566726,0.21493568,107910.0,107900.0,0.0936]
[1760870566908,0.21493568,107910.0,107890.0,0.19462806]
[1760870567108,0.21493568,107910.0,107900.0,0.0936]
[1760870567357,0.21497568,107910.0,107900.0,0.0936]
[1760870567763,0.21568454,107910.0,107900.0,0.0936]
[1760870567924,0.21568454,107910.0,107900.0,0.09509706]
[1760870568693,0.21568454,107910.0,107900.0,0.00149706]
[1760870568895,0.18536706,107900.0,107880.0,0.2890716]
[1760870569029,0.18536706,107900.0,107890.0,0.0936]
[1760870571173,0.18537399,107890.0,107880.0,0.18539117]
[1760870571378,0.18537399,107890.0,107880.0,0.27899117]
[1760870571622,0.18537399,107890.0,107880.0,0.18539117]
[1760870571772,0.18537399,107890.0,107880.0,0.27899117]
[1760870572175,0.18537399,107890.0,107880.0,0.0936]
[1760870572457,0.18539117,107880.0,107870.0,0.18540836]
[1760870572652,0.18539117,107880.0,107870.0,0.37356757]
[1760870572854,0.18537399,107890.0,107880.0,0.18539117]
[1760870573651,0.1946349,107900.0,107880.0,0.18539117]
[1760870573853,0.1946349,107900.0,107890.0,0.0936]
[1760870574446,0.19498936,107900.0,107890.0,0.09508871]
[1760870576849,0.1966043,107900.0,107890.0,0.09508871]
[1760870579204,0.22447178,107900.0,107890.0,0.09508871]
[1760870580743,0.22447178,107900.0,107890.0,0.2804627]
[1760870581068,0.22447178,107900.0,107890.0,0.0936]
[1760870582243,0.22447178,107900.0,107890.0,0.27897399]
[1760870582490,0.03910472,107900.0,107890.0,0.27897399]
[1760870582701,0.02983688,107900.0,107890.0,0.27897399]
[1760870582876,0.0019694,107900.0,107890.0,0.32009968]
[1760870583036,0.0019694,107900.0,107890.0,0.27897399]
[1760870583866,0.00035446,107900.0,107890.0,0.27897399]
[1760870588110,0.00196931,107900.0,107890.0,0.27897399]
[1760870589883,0.18732612,107900.0,107870.0,0.28923798]
[1760870590229,0.18537486,107890.0,107870.0,0.28923798]
[1760870590454,0.18539117,107880.0,107870.0,0.28923798]
[1760870590569,0.18539117,107880.0,107870.0,0.00014833]
[1760870590775,0.18539117,107880.0,107870.0,0.27911669]
[1760870590997,0.18700615,107880.0,107870.0,0.27911669]
[1760870591404,0.00161498,107880.0,107870.0,0.27911669]
[1760870591815,0.18700615,107880.0,107870.0,0.27911669]
[1760870592440,0.00161498,107880.0,107870.0,0.27911669]
[1760870595526,0.18537486,107890.0,107870.0,0.27911669]
[1760870596057,0.18537486,107890.0,107880.0,0.18539117]
[1760870597527,0.18537486,107890.0,107870.0,0.27911669]
[1760870599602,0.18537486,107890.0,107880.0,0.18539117]
[1760870599805,0.18698984,107890.0,107880.0,0.18539117]
[1760870600131,0.18698984,107890.0,107870.0,0.27911669]
[1760870602275,0.18698984,107890.0,107880.0,0.18539117]
[1760870602455,0.18698984,107890.0,107870.0,0.27911669]
[1760870606130,0.00161498,107890.0,107870.0,0.27911669]
[1760870606340,0.18698984,107890.0,107870.0,0.27911669]
[1760870607010,0.18539117,107880.0,107870.0,0.00014833]
[1760870607230,0.18539117,107880.0,107870.0,0.09370833]
[1760870607686,0.18539117,107880.0,107870.0,0.00014833]
[1760870608140,0.30767566,107880.0,107870.0,0.00014833]
[1760870608785,0.64767566,107880.0,107870.0,0.00014833]
[1760870610147,3.66503891,107880.0,107870.0,0.00014833]
[1760870610369,3.64767566,107880.0,107870.0,0.00014833]
[1760870610609,3.66503138,107880.0,107870.0,0.00014833]
[1760870611263,3.66603138,107880.0,107870.0,0.00014833]
[1760870611515,3.66602458,107880.0,107870.0,0.00014833]
[1760870611723,3.66502458,107880.0,107870.0,0.00014833]
[1760870611931,3.66602458,107880.0,107870.0,0.00014833]
[1760870612350,3.66763999,107880.0,107870.0,0.00014833]
[1760870614204,3.66602458,107880.0,107870.0,0.00014833]
[1760870614423,3.30867566,107880.0,107870.0,0.00014833]
[1760870614636,0.30867566,107880.0,107870.0,0.00014833]
[1760870615282,0.30767566,107880.0,107870.0,0.00014833]
[1760870616332,3.30767566,107880.0,107870.0,0.00014833]
[1760870618703,3.64767566,107880.0,107870.0,0.00014833]
[1760870621523,3.64929095,107880.0,107870.0,0.00014833]
[1760870622717,3.12389978,107880.0,107870.0,0.00014833]
[1760870622893,3.30929095,107880.0,107870.0,0.00014833]
[1760870624723,3.30767566,107880.0,107870.0,0.00014833]
[1760870629235,3.30929083,107880.0,107870.0,0.00014833]
[1760870634901,3.30767566,107880.0,107870.0,0.00014833]
[1760870639206,3.27980205,107880.0,107870.0,0.00014833]
[1760870641318,3.28141725,107880.0,107870.0,0.00014833]
[1760870641522,3.62141725,107880.0,107870.0,0.00014833]
[1760870644246,3.27980205,107880.0,107870.0,0.00014833]
[1760870644574,3.37336205,107880.0,107870.0,0.00014833]
[1760870645552,3.27980205,107880.0,107870.0,0.00014833]
[1760870647934,3.0,107880.0,107870.0,0.18555669]
[1760870648110,3.18539117,107880.0,107870.0,0.00014833]
[1760870648492,3.18700634,107880.0,107870.0,0.00014833]
[1760870649110,3.00161517,107880.0,107870.0,0.18555669]
[1760870649530,3.18700634,107880.0,107870.0,0.00014833]
[1760870649727,0.00161517,107880.0,107870.0,0.61911669]
[1760870650131,0.18700634,107880.0,107870.0,0.27911669]
[1760870650934,0.00161517,107880.0,107870.0,0.27911669]
[1760870652355,0.00161517,107880.0,107870.0,0.30520561]
[1760870653158,0.18700634,107880.0,107870.0,0.27911669]
[1760870653361,0.00161517,107880.0,107870.0,0.27911669]
[1760870654174,0.00161517,107880.0,107870.0,0.40970985]
[1760870655287,0.00161517,107880.0,107870.0,0.74970985]
[1760870657347,0.00035446,107900.0,107890.0,0.18537399]
[1760870657543,0.00035446,107900.0,107890.0,0.27893399]
[1760870661354,0.34926612,107920.0,107900.0,0.18535681]
[1760870661565,0.18533963,107910.0,107900.0,0.18535681]
[1760870661765,0.18533963,107910.0,107900.0,0.27887681]
[1760870661982,0.18569405,107910.0,107900.0,0.27887681]
[1760870662507,0.18569405,107910.0,107900.0,0.09352]
[1760870662715,0.22375934,107910.0,107900.0,0.09352]
[1760870663815,0.22375934,107910.0,107900.0,0.27887681]
[1760870664015,0.03841971,107910.0,107900.0,0.27887681]
[1760870664269,0.22375934,107910.0,107900.0,0.27887681]
[1760870664888,0.03841971,107910.0,107900.0,0.27887681]
[1760870665088,0.22375934,107910.0,107900.0,0.27887681]
[1760870665989,0.03841971,107910.0,107900.0,0.27887681]
[1760870674344,0.04003445,107910.0,107900.0,0.27887681]
[1760870676992,0.00196916,107910.0,107900.0,0.37328769]
[1760870678195,0.03931223,107910.0,107900.0,0.37328769]
[1760870680117,0.00196916,107910.0,107900.0,0.37328769]
[1760870681768,0.00196916,107910.0,107900.0,0.40946997]
[1760870682007,0.00035442,107910.0,107900.0,0.46895437]
[1760870682217,0.00035442,107910.0,107900.0,0.80895437]
[1760870683385,0.1945533,107940.0,107910.0,0.22150899]
[1760870683582,0.18530581,107930.0,107920.0,0.09352]
[1760870683807,0.18530581,107930.0,107920.0,0.27884246]
[1760870684034,0.1945533,107940.0,107920.0,0.27884246]
[1760870684172,0.1945533,107940.0,107920.0,0.33470047]
[1760870684581,0.19464502,107940.0,107920.0,0.33470047]
[1760870684981,0.19625959,107940.0,107920.0,0.33470047]
[1760870685186,0.21362211,107940.0,107920.0,0.33470047]
[1760870685385,0.23419287,107940.0,107920.0,0.33470047]
[1760870685935,0.18530529,107930.0,107920.0,0.18532246]
[1760870686167,0.18530529,107930.0,107920.0,0.27884246]
[1760870686598,0.23419287,107940.0,107920.0,0.27884246]
[1760870686804,0.25155174,107940.0,107920.0,0.27884246]
[1760870688914,0.00070867,107930.0,107920.0,0.27884246]
[1760870689925,0.18601396,107930.0,107920.0,0.27884246]
[1760870690569,0.00070867,107930.0,107920.0,0.27884246]
[1760870699020,0.18601396,107930.0,107920.0,0.27884246]
[1760870699699,0.18532246,107920.0,107900.0,0.19462422]
[1760870699926,0.18533963,107910.0,107900.0,0.09441088]
[1760870700151,0.18533963,107910.0,107900.0,0.09348]
[1760870700369,0.1869543,107910.0,107890.0,0.18537399]
[1760870700584,0.18535681,107900.0,107880.0,0.19464616]
[1760870700868,0.02786316,107910.0,107890.0,0.2788539]
[1760870701076,0.52532625,107920.0,107910.0,0.18533963]
[1760870701301,0.55318355,107920.0,107910.0,0.09348]
[1760870701742,0.55323301,107920.0,107910.0,0.09348]
[1760870701917,0.55305311,107920.0,107910.0,0.09348]
[1760870702968,0.55305311,107920.0,107910.0,0.27881963]
[1760870703180,0.55305311,107920.0,107910.0,0.09348]
[1760870703567,0.55466784,107920.0,107910.0,0.09348]
[1760870703790,0.55466784,107920.0,107910.0,0.09368764]
[1760870704709,0.55466784,107920.0,107910.0,0.30693172]
[1760870704917,0.02952528,107920.0,107910.0,0.30672408]
[1760870705127,0.00201856,107920.0,107910.0,0.30672408]
[1760870705588,0.00205856,107920.0,107910.0,0.30672408]
[1760870706493,0.18738102,107920.0,107890.0,0.28905347]
[1760870706717,0.18533963,107910.0,107900.0,0.09348]
[1760870707129,0.18533963,107910.0,107900.0,0.09330018]
[1760870707369,0.21320227,107910.0,107900.0,0.09330018]
[1760870707574,0.18535681,107900.0,107890.0,0.18537399]
[1760870707781,0.18535681,107900.0,107890.0,0.27885399]
[1760870708269,0.00161474,107900.0,107890.0,0.27885399]
[1760870709137,0.00161474,107900.0,107890.0,0.32620401]
[1760870711673,0.00165474,107900.0,107890.0,0.32620401]
[1760870712911,0.00165474,107900.0,107890.0,0.27885399]
[1760870714698,0.0476296,107910.0,107890.0,0.27885399]
[1760870715506,0.0476296,107910.0,107900.0,0.00061956]
[1760870716236,0.18536122,107900.0,107880.0,0.19464616]
[1760870716419,0.18536122,107900.0,107890.0,0.09348]
[1760870716618,0.07549338,107910.0,107890.0,0.27885399]